fUSD/lending_fUSD_20250125
["ID","MTS","AMOUNT","RATE_DAILY","PERIOD"]
[350311557,1737783043135,-270.61457978,0.00016574,2]
[350311559,1737783043145,-504.66619246,0.00016574,2]
[350311562,1737783043156,-504.34491893,0.00016574,2]
[350311564,1737783043166,-500.0,0.00016574,2]
[350311566,1737783043177,-500.0,0.00016574,2]
[350311568,1737783043188,-500.0,0.00016574,2]
[350311570,1737783043198,-500.0,0.00016574,2]
[350311572,1737783043209,-500.0,0.00016574,2]
[350311574,1737783043219,-500.0,0.00016574,2]
[350311577,1737783043230,-500.0,0.00016574,2]
[350311579,1737783043241,-500.0,0.00016574,2]
[350311581,1737783043253,-500.0,0.00016574,2]
[350311583,1737783043263,-500.0,0.00016574,2]
[350311585,1737783043274,-500.0,0.00016574,2]
[350311587,1737783043284,-500.0,0.00016574,2]
[350311589,1737783043296,-500.0,0.00016574,2]
[350311592,1737783043307,-500.0,0.00016574,2]
[350311594,1737783043318,-500.0,0.00016574,2]
[350311596,1737783043330,-500.0,0.00016574,2]
[350311598,1737783043340,-503.07553975,0.00016574,2]
[350311600,1737783043351,-508.49062565,0.00016574,2]
[350311603,1737783043363,-500.0,0.00016574,2]
[350311605,1737783043374,-500.0,0.00016574,2]
[350311607,1737783043384,-500.0,0.00016574,2]
[350311609,1737783043395,-502.26486519,0.00016574,2]
[350311611,1737783043406,-502.55803682,0.00016574,2]
[350311613,1737783043417,-513.64832801,0.00016574,2]
[350311615,1737783043428,-510.39502636,0.00016574,2]
[350311617,1737783043438,-500.0,0.00016574,2]
[350311620,1737783043449,-500.0,0.00016574,2]
[350311622,1737783043459,-525.73351398,0.00016574,2]
[350311624,1737783043470,-511.47661995,0.00016574,2]
[350311626,1737783043480,-503.28014635,0.00016574,2]
[350311628,1737783043491,-500.0,0.00016574,2]
[350311630,1737783043501,-500.0,0.00016574,2]
[350311632,1737783043511,-500.0,0.00016574,2]
[350311635,1737783043523,-514.69607313,0.00016574,2]
[350311637,1737783043533,-500.0,0.00016574,2]
[350311639,1737783043543,-506.1230566,0.00016574,2]
[350311641,1737783043554,-544.94082227,0.00016574,2]
[350311643,1737783043565,-591.01470016,0.00016574,2]
[350311645,1737783043576,-500.0,0.00016574,2]
[350311647,1737783043590,-500.0,0.00016574,2]
[350311649,1737783043600,-500.0,0.00016574,2]
[350311652,1737783043611,-508.95074127,0.00016574,2]
[350311654,1737783043622,-500.0,0.00016574,2]
[350311656,1737783043632,-500.0,0.00016574,2]
[350311658,1737783043643,-629.29516026,0.00016574,2]
[350311660,1737783043653,-500.0,0.00016574,2]
[350311662,1737783043664,-500.0,0.00016574,2]
[350311664,1737783043675,-551.72234578,0.00016574,2]
[350311666,1737783043685,-500.0,0.00016574,2]
[350311669,1737783043695,-500.0,0.00016574,2]
[350311671,1737783043707,-500.0,0.00016574,2]
[350311673,1737783043718,-511.23584155,0.00016574,2]
[350311675,1737783043729,-530.9219621,0.00016574,2]
[350311677,1737783043740,-301.84783557,0.00016574,2]
[350311679,1737783043751,-500.0,0.00016574,2]
[350311681,1737783043761,-500.0,0.00016574,2]
[350311684,1737783043772,-502.67480545,0.00016574,2]
[350311686,1737783043783,-500.0,0.00016574,2]
[350311688,1737783043794,-505.97851927,0.00016574,2]
[350311690,1737783043805,-504.11192682,0.00016574,2]
[350311692,1737783043816,-501.44822724,0.00016574,2]
[350311694,1737783043827,-500.0,0.00016574,2]
[350311696,1737783043838,-229.92466194,0.00016574,2]
[350311699,1737783043848,-500.0,0.00016574,2]
[350311701,1737783043859,-500.0,0.00016574,2]
[350311703,1737783043870,-500.0,0.00016574,2]
[350311705,1737783043880,-514.90755289,0.00016574,2]
[350311732,1737783044122,-555.27837908,0.00016574,2]
[350311734,1737783044132,-500.0,0.00016574,2]
[350311736,1737783044142,-627.55447108,0.00016574,2]
[350311738,1737783044151,-500.0,0.00016574,2]
[350311740,1737783044160,-307.69430993,0.00016574,2]
[350311742,1737783044169,-500.0,0.00016574,2]
[350311744,1737783044179,-500.0,0.00016574,2]
[350311746,1737783044188,-500.0,0.00016574,2]
[350311748,1737783044197,-514.85831069,0.00016574,2]
[350311750,1737783044207,-504.52013155,0.00016574,2]
[350311752,1737783044216,-500.0,0.00016574,2]
[350311754,1737783044225,-500.0,0.00016574,2]
[350311756,1737783044234,-511.94079772,0.00016574,2]
[350311758,1737783044243,-500.0,0.00016574,2]
[350311760,1737783044253,-500.0,0.00016574,2]
[350311762,1737783044263,-310.09464392,0.00016574,2]
[350311764,1737783044272,-500.0,0.00016574,2]
[350311766,1737783044281,-570.38533335,0.00016574,2]
[350311768,1737783044291,-263.93680975,0.00016574,2]
[350311770,1737783044301,-500.0,0.00016574,2]
[350311772,1737783044311,-270.69639282,0.00016574,2]
[350311774,1737783044321,-591.10858332,0.00016574,2]
[350311776,1737783044330,-517.13542134,0.00016574,2]
[350311778,1737783044339,-500.0,0.00016574,2]
[350311780,1737783044348,-466.52389373,0.00016575,2]
[350311782,1737783044357,-500.0,0.00016575,2]
[350311784,1737783044366,-512.9939317,0.00016575,2]
[350311786,1737783044375,-497.31343465,0.00016575,2]
[350311788,1737783044385,-515.74105913,0.00016575,2]
[350311790,1737783044394,-500.0,0.00016575,2]
[350311791,1737783044404,-500.0,0.00016575,2]
[350311792,1737783044413,-500.0,0.00016575,2]
[350311793,1737783044422,-500.0,0.00016575,2]
[350311794,1737783044431,-500.0,0.00016575,2]
[350311795,1737783044441,-500.0,0.00016575,2]
[350311796,1737783044450,-518.92446398,0.00016575,2]
[350311797,1737783044460,-500.0,0.00016575,2]
[350311798,1737783044469,-500.0,0.00016575,2]
[350311799,1737783044479,-500.0,0.00016575,2]
[350311800,1737783044488,-500.0,0.00016575,2]
[350311801,1737783044498,-500.0,0.00016575,2]
[350311803,1737783044507,-500.0,0.00016575,2]
[350311804,1737783044516,-500.0,0.00016575,2]
[350311806,1737783044526,-500.0,0.00016575,2]
[350311808,1737783044535,-500.0,0.00016575,2]
[350311810,1737783044547,-500.0,0.00016575,2]
[350311812,1737783044556,-500.0,0.00016575,2]
[350311815,1737783044568,-522.59216125,0.00016575,2]
[350311816,1737783044578,-548.14667552,0.00016575,2]
[350311819,1737783044589,-500.0,0.00016575,2]
[350311821,1737783044600,-500.0,0.00016575,2]
[350311822,1737783044609,-500.0,0.00016575,2]
[350311824,1737783044618,-500.0,0.00016575,2]
[350311827,1737783044628,-500.0,0.00016575,2]
[350311829,1737783044638,-500.0,0.00016575,2]
[350311830,1737783044648,-500.0,0.00016575,2]
[350311832,1737783044657,-500.0,0.00016575,2]
[350311835,1737783044669,-500.0,0.00016575,2]
[350311836,1737783044678,-500.0,0.00016575,2]
[350311839,1737783044688,-500.0,0.00016575,2]
[350311841,1737783044697,-500.0,0.00016575,2]
[350311842,1737783044706,-500.0,0.00016575,2]
[350311844,1737783044716,-529.07892989,0.00016575,2]
[350311847,1737783044727,-500.0,0.00016575,2]
[350311848,1737783044737,-500.0,0.00016575,2]
[350311851,1737783044746,-500.0,0.00016575,2]
[350311852,1737783044757,-500.0,0.00016575,2]
[350311854,1737783044766,-500.0,0.00016575,2]
[350311857,1737783044775,-500.0,0.00016575,2]
[350311859,1737783044784,-177.59666702,0.00016575,2]
[350311860,1737783044794,-516.07915188,0.00016575,2]
[350311863,1737783044804,-500.0,0.00016575,2]
[350311865,1737783044813,-500.0,0.00016575,2]
[350311867,1737783044823,-500.0,0.00016575,2]
[350311868,1737783044832,-594.28944072,0.00016575,2]
[350311870,1737783044841,-584.59,0.00016575,2]
[350311873,1737783044850,-500.0,0.00016575,2]
[350311874,1737783044859,-500.0,0.00016575,2]
[350311876,1737783044868,-500.0,0.00016575,2]
[350311878,1737783044878,-500.0,0.00016575,2]
[350311880,1737783044887,-512.39265616,0.00016575,2]
[350311883,1737783044898,-500.0,0.00016575,2]
[350311885,1737783044907,-500.0,0.00016575,2]
[350311887,1737783044917,-500.0,0.00016575,2]
[350311889,1737783044926,-500.0,0.00016575,2]
[350311891,1737783044936,-500.0,0.00016575,2]
[350311893,1737783044945,-500.0,0.00016575,2]
[350311895,1737783044954,-500.0,0.00016575,2]
[350311897,1737783044963,-500.0,0.00016575,2]
[350311899,1737783044973,-500.0,0.00016575,2]
[350311901,1737783044982,-500.0,0.00016575,2]
[350311903,1737783044992,-500.0,0.00016575,2]
[350311904,1737783045001,-500.0,0.00016575,2]
[350311906,1737783045012,-500.0,0.00016575,2]
[350311909,1737783045022,-500.0,0.00016575,2]
[350311911,1737783045032,-500.0,0.00016575,2]
[350311913,1737783045041,-500.0,0.00016575,2]
[350311915,1737783045051,-500.0,0.00016575,2]
[350311916,1737783045060,-500.0,0.00016575,2]
[350311919,1737783045070,-500.0,0.00016575,2]
[350311920,1737783045079,-500.0,0.00016575,2]
[350311923,1737783045088,-232.672341,0.00016575,2]
[350311924,1737783045098,-500.0,0.00016575,2]
[350311927,1737783045107,-500.0,0.00016575,2]
[350311928,1737783045116,-500.0,0.00016575,2]
[350311931,1737783045126,-500.0,0.00016575,2]
[350311932,1737783045135,-637.77,0.00016575,2]
[350311934,1737783045145,-500.0,0.00016575,2]
[350311936,1737783045154,-500.0,0.00016575,2]
[350311938,1737783045164,-500.0,0.00016575,2]
[350311941,1737783045174,-500.0,0.00016575,2]
[350311942,1737783045183,-500.0,0.00016575,2]
[350311945,1737783045192,-500.0,0.00016575,2]
[350311947,1737783045202,-500.0,0.00016575,2]
[350311948,1737783045211,-500.0,0.00016575,2]
[350311950,1737783045221,-500.0,0.00016575,2]
[350311952,1737783045230,-500.0,0.00016575,2]
[350311954,1737783045239,-500.0,0.00016575,2]
[350311956,1737783045248,-500.0,0.00016575,2]
[350311958,1737783045257,-500.0,0.00016575,2]
[350311960,1737783045266,-502.35635231,0.00016575,2]
[350311962,1737783045275,-504.26694784,0.00016575,2]
[350311964,1737783045284,-500.0,0.00016575,2]
[350311966,1737783045294,-500.0,0.00016575,2]
[350311968,1737783045303,-500.0,0.00016575,2]
[350311970,1737783045313,-500.0,0.00016575,2]
[350311972,1737783045324,-500.0,0.00016575,2]
[350311974,1737783045333,-500.0,0.00016575,2]
[350311977,1737783045342,-500.0,0.00016575,2]
[350311978,1737783045351,-500.0,0.00016575,2]
[350311980,1737783045361,-500.0,0.00016575,2]
[350311982,1737783045371,-500.0,0.00016575,2]
[350311984,1737783045380,-544.45,0.00016575,2]
[350311986,1737783045390,-500.0,0.00016575,2]
[350311988,1737783045399,-500.0,0.00016575,2]
[350311990,1737783045409,-500.0,0.00016575,2]
[350311992,1737783045418,-509.6408177,0.00016575,2]
[350311994,1737783045428,-500.0,0.00016575,2]
[350311996,1737783045438,-500.0,0.00016575,2]
[350311998,1737783045448,-500.0,0.00016575,2]
[350312000,1737783045458,-455.558396,0.00016575,2]
[350312002,1737783045467,-500.0,0.00016575,2]
[350312004,1737783045476,-500.0,0.00016575,2]
[350312006,1737783045486,-500.0,0.00016575,2]
[350312008,1737783045495,-500.0,0.00016575,2]
[350312011,1737783045506,-705.94,0.00016575,2]
[350312012,1737783045516,-522.06,0.00016575,2]
[350312015,1737783045526,-760.95,0.00016575,2]
[350312017,1737783045535,-500.0,0.00016575,2]
[350312018,1737783045544,-500.0,0.00016575,2]
[350312020,1737783045554,-500.0,0.00016575,2]
[350312022,1737783045565,-500.0,0.00016575,2]
[350312024,1737783045574,-500.0,0.00016575,2]
[350312026,1737783045585,-500.0,0.00016575,2]
[350312029,1737783045597,-500.0,0.00016575,2]
[350312030,1737783045606,-500.0,0.00016575,2]
[350312032,1737783045615,-842.359431,0.00016575,2]
[350312034,1737783045626,-505.59,0.00016575,2]
[350312037,1737783045635,-500.0,0.00016575,2]
[350312038,1737783045645,-500.0,0.00016575,2]
[350312041,1737783045655,-500.0,0.00016575,2]
[350312042,1737783045664,-500.0,0.00016575,2]
[350312045,1737783045674,-553.66,0.00016575,2]
[350312046,1737783045684,-698.56,0.00016575,2]
[350312048,1737783045693,-1108.6,0.00016575,2]
[350312051,1737783045702,-651.44,0.00016575,2]
[350312053,1737783045712,-500.0,0.00016575,2]
[350312055,1737783045722,-500.0,0.00016575,2]
[350312057,1737783045731,-500.0,0.00016575,2]
[350312059,1737783045741,-592.76,0.00016575,2]
[350312061,1737783045750,-500.0,0.00016575,2]
[350312063,1737783045760,-500.0,0.00016575,2]
[350312065,1737783045769,-500.0,0.00016575,2]
[350312066,1737783045778,-500.0,0.00016575,2]
[350312069,1737783045787,-500.0,0.00016575,2]
[350312071,1737783045797,-500.0,0.00016575,2]
[350312073,1737783045807,-639.65,0.00016575,2]
[350312074,1737783045816,-500.0,0.00016575,2]
[350312076,1737783045825,-500.0,0.00016575,2]
[350312078,1737783045835,-516.37,0.00016575,2]
[350312080,1737783045844,-763.03,0.00016575,2]
[350312082,1737783045853,-500.0,0.00016575,2]
[350312084,1737783045862,-518.55,0.00016575,2]
[350312086,1737783045871,-1200.4,0.00016575,2]
[350312088,1737783045880,-500.0,0.00016575,2]
[350312090,1737783045890,-500.0,0.00016575,2]
[350312092,1737783045899,-1125.84,0.00016575,2]
[350312094,1737783045909,-500.0,0.00016575,2]
[350312096,1737783045919,-500.0,0.00016575,2]
[350312098,1737783045928,-500.0,0.00016575,2]
[350312100,1737783045937,-500.0,0.00016575,2]
[350312103,1737783045947,-500.0,0.00016575,2]
[350312107,1737783045956,-500.0,0.00016575,2]
[350312111,1737783045966,-500.0,0.00016575,2]
[350312114,1737783045975,-500.0,0.00016575,2]
[350312116,1737783045984,-500.0,0.00016575,2]
[350312118,1737783045994,-500.0,0.00016575,2]
[350312120,1737783046003,-500.0,0.00016575,2]
[350312122,1737783046012,-500.0,0.00016575,2]
[350312124,1737783046021,-500.0,0.00016575,2]
[350312126,1737783046031,-802.79,0.00016575,2]
[350312128,1737783046041,-500.0,0.00016575,2]
[350312131,1737783046051,-500.0,0.00016575,2]
[350312134,1737783046061,-500.0,0.00016575,2]
[350312137,1737783046070,-500.0,0.00016575,2]
[350312140,1737783046080,-500.0,0.00016575,2]
[350312143,1737783046089,-961.8,0.00016575,2]
[350312146,1737783046099,-500.0,0.00016575,2]
[350312149,1737783046108,-516.52,0.00016575,2]
[350312152,1737783046117,-500.0,0.00016575,2]
[350312155,1737783046127,-671.56,0.00016575,2]
[350312158,1737783046137,-500.0,0.00016575,2]
[350312160,1737783046146,-895.01,0.00016575,2]
[350312162,1737783046155,-500.0,0.00016575,2]
[350312164,1737783046165,-500.0,0.00016575,2]
[350312166,1737783046174,-500.0,0.00016575,2]
[350312168,1737783046183,-500.0,0.00016575,2]
[350312170,1737783046192,-500.0,0.00016575,2]
[350312172,1737783046202,-716.74,0.00016575,2]
[350312174,1737783046212,-500.0,0.00016575,2]
[350312176,1737783046222,-500.0,0.00016575,2]
[350312178,1737783046231,-500.0,0.00016575,2]
[350312180,1737783046240,-500.0,0.00016575,2]
[350312182,1737783046250,-500.0,0.00016575,2]
[350312184,1737783046259,-500.0,0.00016575,2]
[350312186,1737783046269,-500.0,0.00016575,2]
[350312188,1737783046278,-500.0,0.00016575,2]
[350312190,1737783046287,-500.0,0.00016575,2]
[350312192,1737783046297,-500.0,0.00016575,2]
[350312194,1737783046307,-1038.34,0.00016575,2]
[350312196,1737783046316,-520.07596753,0.00016575,2]
[350312198,1737783046326,-1061.24,0.00016575,2]
[350312200,1737783046335,-500.0,0.00016575,2]
[350312202,1737783046344,-782.07,0.00016575,2]
[350312204,1737783046354,-380.32,0.00016575,2]
[350312206,1737783046365,-500.0,0.00016575,2]
[350312208,1737783046374,-1520.72,0.00016575,2]
[350312210,1737783046385,-546.03,0.00016575,2]
[350312212,1737783046395,-500.0,0.00016575,2]
[350312214,1737783046404,-1256.58,0.00016575,2]
[350312216,1737783046413,-500.0,0.00016575,2]
[350312218,1737783046423,-500.0,0.00016575,2]
[350312220,1737783046433,-649.67,0.00016575,2]
[350312222,1737783046442,-428.55924325,0.00016575,2]
[350312224,1737783046451,-500.0,0.00016575,2]
[350312226,1737783046460,-500.0,0.00016575,2]
[350312228,1737783046470,-500.0,0.00016575,2]
[350312230,1737783046480,-500.0,0.00016575,2]
[350312232,1737783046489,-500.0,0.00016575,2]
[350312234,1737783046498,-500.0,0.00016575,2]
[350312236,1737783046508,-500.0,0.00016575,2]
[350312238,1737783046518,-565.16,0.00016575,2]
[350312240,1737783046528,-500.0,0.00016575,2]
[350312242,1737783046538,-500.0,0.00016575,2]
[350312244,1737783046547,-500.0,0.00016575,2]
[350312246,1737783046558,-500.0,0.00016575,2]
[350312248,1737783046567,-500.0,0.00016575,2]
[350312250,1737783046577,-500.0,0.00016575,2]
[350312252,1737783046590,-500.0,0.00016575,2]
[350312254,1737783046600,-563.51,0.00016575,2]
[350312256,1737783046610,-708.27,0.00016575,2]
[350312258,1737783046620,-500.0,0.00016575,2]
[350312260,1737783046631,-500.0,0.00016575,2]
[350312262,1737783046641,-500.0,0.00016575,2]
[350312264,1737783046651,-500.0,0.00016575,2]
[350312266,1737783046661,-560.94,0.00016575,2]
[350312268,1737783046673,-500.0,0.00016575,2]
[350312270,1737783046683,-500.0,0.00016575,2]
[350312272,1737783046693,-500.0,0.00016575,2]
[350312274,1737783046703,-200.0,0.00016602,2]
[350312276,1737783046712,-508.66970457,0.00016711,2]
[350312278,1737783046721,-500.0,0.00016711,2]
[350312280,1737783046731,-500.0,0.00016711,2]
[350312282,1737783046740,-219.72604632,0.00016711,2]
[350312284,1737783046749,-588.61507666,0.00016711,2]
[350312285,1737783046758,-500.0,0.00016711,2]
[350312286,1737783046767,-500.0,0.00016711,2]
[350312287,1737783046776,-510.35664917,0.00016711,2]
[350312288,1737783046785,-500.0,0.00016711,2]
[350312289,1737783046794,-500.0,0.00016711,2]
[350312290,1737783046805,-500.0,0.00016711,2]
[350312291,1737783046814,-509.35940889,0.00016711,2]
[350312292,1737783046824,-500.0,0.00016711,2]
[350312293,1737783046833,-349.5343113,0.00016711,2]
[350312294,1737783046841,-500.0,0.00016711,2]
[350312295,1737783046851,-500.0,0.00016711,2]
[350312297,1737783046860,-500.0,0.00016711,2]
[350312299,1737783046870,-500.0,0.00016711,2]
[350312301,1737783046879,-500.0,0.00016711,2]
[350312303,1737783046889,-512.25839942,0.00016711,2]
[350312305,1737783046898,-500.0,0.00016711,2]
[350312306,1737783046908,-504.19548673,0.00016711,2]
[350312309,1737783046918,-627.09422007,0.00016711,2]
[350312311,1737783046927,-500.0,0.00016711,2]
[350312312,1737783046937,-510.07068835,0.00016711,2]
[350312314,1737783046947,-507.07473333,0.00016711,2]
[350312317,1737783046956,-512.71431613,0.00016711,2]
[350312319,1737783046966,-500.0,0.00016711,2]
[350312320,1737783046976,-500.0,0.00016711,2]
[350312323,1737783046985,-506.61352698,0.00016711,2]
[350312324,1737783046995,-508.41047092,0.00016711,2]
[350312326,1737783047004,-500.0,0.00016711,2]
[350312328,1737783047014,-500.0,0.00016711,2]
[350312331,1737783047025,-230.67134911,0.00016711,2]
[350312333,1737783047035,-505.85633676,0.00016711,2]
[350312334,1737783047044,-501.15092513,0.00016711,2]
[350312336,1737783047057,-507.03421115,0.00016711,2]
[350312338,1737783047067,-500.0,0.00016711,2]
[350312341,1737783047077,-500.0,0.00016711,2]
[350312342,1737783047087,-500.0,0.00016711,2]
[350312345,1737783047096,-512.17876229,0.00016711,2]
[350312346,1737783047106,-500.0,0.00016711,2]
[350312348,1737783047116,-500.0,0.00016711,2]
[350312350,1737783047125,-500.0,0.00016711,2]
[350312366,1737783047267,-516.93429596,0.00016711,2]
[350312368,1737783047278,-509.01110744,0.00016711,2]
[350312370,1737783047288,-532.28046026,0.00016711,2]
[350312373,1737783047298,-507.52491592,0.00016711,2]
[350312375,1737783047309,-504.12661154,0.00016711,2]
[350312376,1737783047318,-500.0,0.00016711,2]
[350312379,1737783047327,-500.0,0.00016711,2]
[350312380,1737783047337,-500.0,0.00016711,2]
[350312383,1737783047347,-500.0,0.00016711,2]
[350312385,1737783047357,-500.0,0.00016711,2]
[350312387,1737783047366,-486.40546204,0.00016711,2]
[350312389,1737783047376,-503.21906462,0.00016711,2]
[350312390,1737783047385,-500.0,0.00016711,2]
[350312393,1737783047395,-500.0,0.00016711,2]
[350312395,1737783047404,-500.0,0.00016711,2]
[350312397,1737783047413,-424.25404387,0.00016711,2]
[350312399,1737783047423,-214.79972701,0.00016711,2]
[350312401,1737783047433,-500.0,0.00016711,2]
[350312403,1737783047443,-507.35714828,0.00016711,2]
[350312405,1737783047452,-500.0,0.00016711,2]
[350312407,1737783047461,-505.75689837,0.00016711,2]
[350312409,1737783047471,-505.06923569,0.00016711,2]
[350312410,1737783047481,-500.0,0.00016711,2]
[350312412,1737783047490,-515.50181629,0.00016711,2]
[350312414,1737783047500,-211.99858958,0.00016711,2]
[350312417,1737783047510,-500.0,0.00016711,2]
[350312419,1737783047519,-500.0,0.00016711,2]
[350312420,1737783047528,-500.0,0.00016711,2]
[350312422,1737783047538,-468.21970895,0.00016711,2]
[350312424,1737783047547,-500.0,0.00016711,2]
[350312426,1737783047558,-500.0,0.00016711,2]
[350312428,1737783047568,-509.21738016,0.00016711,2]
[350312430,1737783047577,-507.20884093,0.00016711,2]
[350312432,1737783047589,-500.0,0.00016711,2]
[350312434,1737783047598,-500.0,0.00016711,2]
[350312436,1737783047607,-500.0,0.00016711,2]
[350312438,1737783047617,-500.0,0.00016711,2]
[350312440,1737783047627,-534.47226412,0.00016711,2]
[350312442,1737783047638,-500.0,0.00016711,2]
[350312444,1737783047647,-363.12271812,0.00016711,2]
[350312446,1737783047656,-500.0,0.00016711,2]
[350312448,1737783047667,-500.0,0.00016711,2]
[350312450,1737783047677,-303.02722138,0.00016711,2]
[350312452,1737783047686,-500.0,0.00016711,2]
[350312454,1737783047696,-500.0,0.00016711,2]
[350312456,1737783047705,-566.08204582,0.00016711,2]
[350312458,1737783047715,-500.0,0.00016711,2]
[350312461,1737783047725,-518.62204215,0.00016711,2]
[350312463,1737783047735,-521.5638446,0.00016711,2]
[350312465,1737783047744,-518.34830796,0.00016711,2]
[350312467,1737783047756,-515.89457251,0.00016711,2]
[350312469,1737783047765,-500.0,0.00016711,2]
[350312471,1737783047774,-514.12263882,0.00016711,2]
[350312473,1737783047784,-500.0,0.00016711,2]
[350312475,1737783047793,-1075.58,0.00016711,2]
[350312477,1737783047804,-500.0,0.00016711,2]
[350312479,1737783047813,-500.0,0.00016712,2]
[350312481,1737783047822,-500.0,0.00016712,2]
[350312483,1737783047831,-500.0,0.00016712,2]
[350312485,1737783047840,-500.0,0.00016712,2]
[350312487,1737783047850,-500.0,0.00016712,2]
[350312489,1737783047860,-500.0,0.00016712,2]
[350312491,1737783047869,-500.0,0.00016712,2]
[350312493,1737783047878,-500.0,0.00016712,2]
[350312495,1737783047887,-500.0,0.00016712,2]
[350312497,1737783047897,-500.0,0.00016712,2]
[350312499,1737783047907,-500.0,0.00016712,2]
[350312501,1737783047916,-500.0,0.00016712,2]
[350312503,1737783047925,-500.0,0.00016712,2]
[350312505,1737783047935,-500.0,0.00016712,2]
[350312507,1737783047944,-500.0,0.00016712,2]
[350312509,1737783047953,-500.0,0.00016712,2]
[350312511,1737783047962,-500.0,0.00016712,2]
[350312513,1737783047972,-500.0,0.00016712,2]
[350312515,1737783047981,-500.0,0.00016712,2]
[350312517,1737783047991,-500.0,0.00016712,2]
[350312519,1737783047999,-500.0,0.00016712,2]
[350312521,1737783048008,-519.09848906,0.00016712,2]
[350312523,1737783048017,-500.0,0.00016712,2]
[350312525,1737783048027,-500.0,0.00016712,2]
[350312527,1737783048036,-500.0,0.00016712,2]
[350312529,1737783048046,-500.0,0.00016712,2]
[350312531,1737783048058,-500.0,0.00016712,2]
[350312533,1737783048068,-500.0,0.00016712,2]
[350312535,1737783048078,-500.0,0.00016712,2]
[350312537,1737783048086,-500.0,0.00016712,2]
[350312539,1737783048095,-500.0,0.00016712,2]
[350312541,1737783048105,-500.0,0.00016712,2]
[350312543,1737783048114,-500.0,0.00016712,2]
[350312545,1737783048123,-500.0,0.00016712,2]
[350312547,1737783048132,-500.0,0.00016712,2]
[350312549,1737783048142,-500.0,0.00016712,2]
[350312551,1737783048151,-500.0,0.00016712,2]
[350312553,1737783048161,-500.0,0.00016712,2]
[350312555,1737783048170,-584.59,0.00016712,2]
[350312557,1737783048180,-500.0,0.00016712,2]
[350312559,1737783048189,-500.0,0.00016712,2]
[350312561,1737783048199,-500.0,0.00016712,2]
[350312563,1737783048209,-500.0,0.00016712,2]
[350312565,1737783048218,-581.84737135,0.00016712,2]
[350312567,1737783048228,-500.0,0.00016712,2]
[350312569,1737783048238,-500.0,0.00016712,2]
[350312571,1737783048248,-500.0,0.00016712,2]
[350312573,1737783048258,-500.0,0.00016712,2]
[350312575,1737783048268,-500.0,0.00016712,2]
[350312577,1737783048278,-500.0,0.00016712,2]
[350312579,1737783048287,-500.0,0.00016712,2]
[350312581,1737783048297,-500.0,0.00016712,2]
[350312583,1737783048308,-500.0,0.00016712,2]
[350312585,1737783048318,-500.0,0.00016712,2]
[350312588,1737783048328,-500.0,0.00016712,2]
[350312590,1737783048338,-500.0,0.00016712,2]
[350312592,1737783048347,-500.0,0.00016712,2]
[350312593,1737783048356,-500.0,0.00016712,2]
[350312596,1737783048368,-500.0,0.00016712,2]
[350312598,1737783048377,-500.0,0.00016712,2]